bitfinex/quotes_BTCUSD_20250211
["timestamp","ask_amount","ask_price","bid_price","bid_amount"]
[1739311291381,3.6960497,96598.0,96597.0,1.47808256]
[1739311291602,3.6546417,96598.0,96597.0,1.47108256]
[1739311291837,3.6546417,96598.0,96597.0,1.48608256]
[1739311292059,3.6546417,96598.0,96597.0,1.49308256]
[1739311292309,3.6335417,96598.0,96597.0,1.47108256]
[1739311292552,3.56890057,96598.0,96597.0,1.49308256]
[1739311292760,3.52749257,96598.0,96597.0,1.49308256]
[1739311293308,3.48608457,96598.0,96597.0,1.49308256]
[1739311293521,3.42397257,96598.0,96597.0,1.50096256]
[1739311293902,3.42397257,96598.0,96597.0,1.48596256]
[1739311294108,3.42397257,96598.0,96597.0,1.50096256]
[1739311294312,3.40326857,96598.0,96597.0,1.49396256]
[1739311294437,3.36186057,96598.0,96597.0,1.49396256]
[1739311294649,3.25741731,96598.0,96597.0,1.50096256]
[1739311295058,3.21781731,96598.0,96597.0,1.50096256]
[1739311295451,3.11429731,96598.0,96597.0,1.50096256]
[1739311295660,3.11429731,96598.0,96597.0,1.48308256]
[1739311295859,3.11429731,96598.0,96597.0,1.48396256]
[1739311296081,3.11429731,96598.0,96597.0,1.50096256]
[1739311296714,3.11429731,96598.0,96597.0,1.48596256]
[1739311297105,3.07288931,96598.0,96597.0,1.50096256]
[1739311297309,2.95807041,96598.0,96597.0,1.49396256]
[1739311297502,2.87525441,96598.0,96597.0,1.47896256]
[1739311297711,2.87525441,96598.0,96597.0,1.48596256]
[1739311297886,2.87525441,96598.0,96597.0,1.49396256]
[1739311298088,2.87525441,96598.0,96597.0,1.48396256]
[1739311298292,2.87525441,96598.0,96597.0,1.48596256]
[1739311298498,2.87525441,96598.0,96597.0,1.47896256]
[1739311298704,2.87525441,96598.0,96597.0,1.49308256]
[1739311298907,2.87525441,96598.0,96597.0,1.50096256]
[1739311299111,2.87525441,96598.0,96597.0,1.49396256]
[1739311299458,2.87525441,96598.0,96597.0,1.50096256]
[1739311299975,2.87525441,96598.0,96597.0,1.47596256]
[1739311300174,2.87525441,96598.0,96597.0,1.50096256]
[1739311300421,2.87525441,96598.0,96597.0,1.49308256]
[1739311300626,2.87525441,96598.0,96597.0,1.45308256]
[1739311300834,2.87525441,96598.0,96597.0,1.43508256]
[1739311301003,2.87525441,96598.0,96597.0,1.12896076]
[1739311301207,2.87525441,96598.0,96597.0,0.11750365]
[1739311301407,2.87525441,96598.0,96597.0,0.12450365]
[1739311301813,2.87525441,96598.0,96597.0,0.10950365]
[1739311302318,2.95125441,96598.0,96597.0,0.10250365]
[1739311302491,2.95125441,96598.0,96597.0,0.10950365]
[1739311303711,2.95125441,96598.0,96597.0,0.11750365]
[1739311303916,2.95125441,96598.0,96597.0,0.12350365]
[1739311304373,2.95125441,96598.0,96597.0,0.10250365]
[1739311304610,2.95125441,96598.0,96597.0,0.10850365]
[1739311305054,2.94625441,96598.0,96597.0,0.10850365]
[1739311305269,2.94625441,96598.0,96597.0,0.12050365]
[1739311307911,3.02553641,96598.0,96597.0,0.12050365]
[1739311308315,2.97275806,96598.0,96597.0,0.12050365]
[1739311308505,2.87025441,96598.0,96597.0,0.12050365]
[1739311308963,2.87025441,96598.0,96597.0,0.27578765]
[1739311309303,2.87025441,96598.0,96597.0,0.12050365]
[1739311309701,2.87025441,96598.0,96597.0,0.1207273]
[1739311309905,2.87025441,96598.0,96597.0,0.1087273]
[1739311310109,2.87025441,96598.0,96597.0,0.2790113]
[1739311310310,2.87025441,96598.0,96597.0,1.10582273]
[1739311310519,2.87025441,96598.0,96597.0,1.09982273]
[1739311310850,2.86557118,96598.0,96597.0,1.09982273]
[1739311311047,2.86557118,96598.0,96597.0,1.09182273]
[1739311311251,2.87015238,96598.0,96597.0,1.10182273]
[1739311311617,2.87015238,96598.0,96597.0,1.10982273]
[1739311311813,2.87015238,96598.0,96597.0,1.11682273]
[1739311312048,2.87015238,96598.0,96597.0,1.10982273]
[1739311312213,2.87015238,96598.0,96597.0,1.13433505]
[1739311312806,2.82874438,96598.0,96597.0,1.14133505]
[1739311312971,2.76663238,96598.0,96597.0,1.19843505]
[1739311313392,2.76663238,96598.0,96597.0,1.23458683]
[1739311313843,2.76663238,96598.0,96597.0,1.21958683]
[1739311314026,2.76663238,96598.0,96597.0,1.23458683]
[1739311314450,2.76663238,96598.0,96597.0,1.24158683]
[1739311314715,2.76663238,96598.0,96597.0,1.56288683]
[1739311317196,2.76663238,96598.0,96597.0,1.54788683]
[1739311317394,2.76663238,96598.0,96597.0,1.54088683]
[1739311317609,2.76663238,96598.0,96597.0,1.55588683]
[1739311317816,2.76663238,96598.0,96597.0,1.56288683]
[1739311318058,2.76663238,96598.0,96597.0,1.55588683]
[1739311318278,2.76663238,96598.0,96597.0,1.56288683]
[1739311318518,2.76663238,96598.0,96597.0,1.4835754]
[1739311318718,2.76663238,96598.0,96597.0,1.4914554]
[1739311319134,2.76663238,96598.0,96597.0,1.4835754]
[1739311319333,2.76663238,96598.0,96597.0,1.4764554]
[1739311319536,2.76663238,96598.0,96597.0,1.4914554]
[1739311322994,2.68888297,96598.0,96597.0,1.4914554]
[1739311323406,2.68888297,96598.0,96597.0,1.4814554]
[1739311324210,2.68888297,96598.0,96597.0,1.4914554]
[1739311325212,2.44615162,96598.0,96597.0,1.4914554]
[1739311327333,2.40474362,96598.0,96597.0,1.5014554]
[1739311328097,2.40474362,96598.0,96597.0,1.4944554]
[1739311328497,2.40474362,96598.0,96597.0,1.5014554]
[1739311328699,2.40474362,96598.0,96597.0,1.4944554]
[1739311328913,2.40474362,96598.0,96597.0,1.4844554]
[1739311329114,2.40474362,96598.0,96597.0,1.4594554]
[1739311329427,2.40474362,96598.0,96597.0,1.4744554]
[1739311329656,2.40474362,96598.0,96597.0,1.3457554]
[1739311329861,2.40474362,96598.0,96597.0,1.3557554]
[1739311330070,2.40474362,96598.0,96597.0,1.3477554]
[1739311330275,2.40474362,96598.0,96597.0,1.3557554]
[1739311330616,2.40474362,96598.0,96597.0,1.3627554]
[1739311330819,2.40474362,96598.0,96597.0,1.3548754]
[1739311331017,2.40474362,96598.0,96597.0,1.3627554]
[1739311331427,2.40474362,96598.0,96597.0,1.3477554]
[1739311331836,2.40474362,96598.0,96597.0,1.3627554]
[1739311332181,2.40474362,96598.0,96597.0,1.3318754]
[1739311332382,2.40474362,96598.0,96597.0,0.2800113]
[1739311332951,2.40474362,96598.0,96597.0,0.4530113]
[1739311333151,2.40474362,96598.0,96597.0,0.4380113]
[1739311333357,2.40474362,96598.0,96597.0,0.4460113]
[1739311333767,2.40474362,96598.0,96597.0,0.4530113]
[1739311334623,2.40474362,96598.0,96597.0,0.4380113]
[1739311334851,2.40474362,96598.0,96597.0,0.4150113]
[1739311335074,2.40474362,96598.0,96597.0,0.4300113]
[1739311335258,2.50724727,96598.0,96597.0,0.1247273]
[1739311335484,2.58324727,96598.0,96597.0,0.1247273]
[1739311335662,2.48074362,96598.0,96597.0,0.1247273]
[1739311336043,2.48074362,96598.0,96597.0,0.1097273]
[1739311336249,2.48074362,96598.0,96597.0,0.2650113]
[1739311336450,2.48074362,96598.0,96597.0,0.2730113]
[1739311336659,2.48074362,96598.0,96597.0,0.1177273]
[1739311336827,2.48074362,96598.0,96597.0,0.2730113]
[1739311337030,2.48074362,96598.0,96597.0,0.1247273]
[1739311337651,2.48074362,96598.0,96597.0,0.2650113]
[1739311337968,2.48074362,96598.0,96597.0,0.2700113]
[1739311338365,2.48074362,96598.0,96597.0,0.2580113]
[1739311338797,2.48074362,96598.0,96597.0,0.2730113]
[1739311339421,2.48074362,96598.0,96597.0,0.2800113]
[1739311340669,2.48074362,96598.0,96597.0,0.1247273]
[1739311341011,2.48074362,96598.0,96597.0,0.2800113]
[1739311341751,2.48074362,96598.0,96597.0,0.1247273]
[1739311342303,2.48074362,96598.0,96597.0,0.2800113]
[1739311344992,2.48074362,96598.0,96597.0,0.1247273]
[1739311345193,2.48074362,96598.0,96597.0,0.2800113]
[1739311346911,2.40474362,96598.0,96597.0,0.2800113]
[1739311350495,2.40016242,96598.0,96597.0,0.4300113]
[1739311350721,2.40016242,96598.0,96597.0,0.4530113]
[1739311351145,2.40016242,96598.0,96597.0,1.0629113]
[1739311351341,2.40016242,96598.0,96597.0,1.0691046]
[1739311351545,2.40016242,96598.0,96597.0,1.0791046]
[1739311351745,2.40016242,96598.0,96597.0,1.0941046]
[1739311352454,2.40016242,96598.0,96597.0,1.0871046]
[1739311352645,2.40016242,96598.0,96597.0,1.0941046]
[1739311352917,2.40016242,96598.0,96597.0,1.0871046]
[1739311353123,2.40016242,96598.0,96597.0,1.0721046]
[1739311353326,2.40016242,96598.0,96597.0,1.11067313]
[1739311353706,2.40016242,96598.0,96597.0,1.12567313]
[1739311354146,2.40016242,96598.0,96597.0,1.0791046]
[1739311354500,2.40016242,96598.0,96597.0,1.0941046]
[1739311358452,2.40016242,96598.0,96597.0,1.0841046]
[1739311358675,2.40016242,96598.0,96597.0,1.0941046]
[1739311360049,2.24954814,96598.0,96597.0,1.1525046]
[1739311360256,2.22452414,96598.0,96597.0,1.1525046]
[1739311360460,2.14170814,96598.0,96597.0,1.1525046]
[1739311360870,2.14170814,96598.0,96597.0,1.1375046]
[1739311361069,2.14170814,96598.0,96597.0,1.1525046]
[1739311361278,2.12100414,96598.0,96597.0,1.1525046]
[1739311361483,2.07959614,96598.0,96597.0,1.1525046]
[1739311361902,2.03818814,96598.0,96597.0,1.1455046]
[1739311362248,2.03818814,96598.0,96597.0,1.1525046]
[1739311362450,2.01748414,96598.0,96597.0,1.1375046]
[1739311362662,1.99678014,96598.0,96597.0,1.1375046]
[1739311362882,1.95537214,96598.0,96597.0,1.1525046]
[1739311363090,1.93466814,96598.0,96597.0,1.1525046]
[1739311363311,1.91396414,96598.0,96597.0,1.18404358]
[1739311363518,1.87255614,96598.0,96597.0,1.1525046]
[1739311363716,1.83114814,96598.0,96597.0,1.1525046]
[1739311364345,1.78974014,96598.0,96597.0,1.1525046]
[1739311364556,1.72762814,96598.0,96597.0,1.1525046]
[1739311365219,1.72762814,96598.0,96597.0,1.4738046]
[1739311365393,1.68622014,96598.0,96597.0,1.4738046]
[1739311365601,1.62137544,96598.0,96597.0,1.4738046]
[1739311366503,1.57996744,96598.0,96597.0,1.4738046]
[1739311366742,1.53855944,96598.0,96597.0,1.4738046]
[1739311366924,1.49705544,96598.0,96597.0,1.4738046]
[1739311367300,1.47635144,96598.0,96597.0,1.4738046]
[1739311367530,1.37794474,96598.0,96597.0,1.4738046]
[1739311367680,1.35724074,96598.0,96597.0,1.4738046]
[1739311368296,1.33653674,96598.0,96597.0,1.4738046]
[1739311369493,1.25372074,96598.0,96597.0,1.4738046]
[1739311369693,1.23301674,96598.0,96597.0,1.4738046]
[1739311371087,1.19160874,96598.0,96597.0,1.4738046]
[1739311377491,0.54692453,96598.0,96597.0,2.6434046]
[1739311377689,0.1372127,96598.0,96597.0,2.83844082]
[1739311377896,0.006015,96600.0,96599.0,0.325281]
[1739311378092,0.00605955,96600.0,96599.0,1.52435787]
[1739311378342,5.5e-07,96600.0,96599.0,1.32104787]
[1739311378548,5.5e-07,96614.0,96613.0,0.479658]
[1739311378718,4.499e-05,96614.0,96613.0,1.12494165]
[1739311379730,4.499e-05,96614.0,96613.0,1.13994165]
[1739311379906,4.499e-05,96614.0,96613.0,1.14694165]
[1739311380515,0.09277451,96644.0,96613.0,1.14694165]
[1739311380516,0.08285991,96648.0,96623.0,0.15]
[1739311380723,0.00828599,96647.0,96646.0,0.10250365]
[1739311380945,0.155203,96647.0,96646.0,0.10250365]
[1739311381459,0.155203,96647.0,96613.0,0.03598759]
[1739311381460,0.155231,96630.0,96627.0,0.00788]
[1739311381659,0.155221,96637.0,96628.0,0.18536356]
[1739311381884,0.155203,96647.0,96646.0,0.007]
[1739311382074,0.2121103,96647.0,96646.0,0.007]
[1739311382270,0.0569073,96647.0,96628.0,0.07950365]
[1739311382517,0.155232,96629.0,96628.0,0.07950365]
[1739311383559,0.170132,96629.0,96628.0,0.07950365]
[1739311384586,0.170132,96629.0,96628.0,0.08350365]
[1739311385306,0.170132,96629.0,96628.0,0.09350365]
[1739311386796,0.18412643,96629.0,96628.0,0.09350365]
[1739311389532,0.24596193,96629.0,96628.0,0.09350365]
[1739311389728,0.18412643,96629.0,96628.0,0.09350365]
[1739311390504,0.18423293,96629.0,96628.0,0.09350365]
[1739311396339,0.18423293,96629.0,96628.0,0.014]
[1739311403078,0.18423293,96629.0,96628.0,0.01422365]
[1739311411936,0.16933293,96629.0,96628.0,0.01422365]
[1739311412147,0.19002525,96629.0,96628.0,0.01422365]
[1739311416024,0.16933293,96629.0,96628.0,0.01422365]
[1739311427558,0.31933293,96629.0,96628.0,0.01422365]
[1739311428160,0.023,96627.0,96613.0,0.00022365]
[1739311428392,0.305257,96614.0,96613.0,0.00022365]
[1739311429915,0.155257,96614.0,96613.0,0.00022365]
[1739311430184,0.155253,96616.0,96615.0,0.0461]
[1739311430384,0.155253,96616.0,96615.0,0.14860365]
[1739311431804,0.155253,96616.0,96615.0,0.15060365]
[1739311432015,0.21316145,96616.0,96615.0,0.15460365]
[1739311432532,0.21316145,96616.0,96615.0,0.15160365]
[1739311432717,0.155253,96616.0,96615.0,0.15160365]
[1739311433217,0.155253,96616.0,96615.0,0.15760365]
[1739311435206,0.155253,96616.0,96615.0,0.009]
[1739311436897,0.155253,96616.0,96615.0,0.00922386]
[1739311437108,0.22849855,96616.0,96615.0,0.00622386]
[1739311437474,0.22849855,96616.0,96615.0,0.00122386]
[1739311437677,0.22849855,96616.0,96615.0,0.00422386]
[1739311438249,0.22849855,96616.0,96615.0,0.00022386]
[1739311438451,0.22949855,96616.0,96615.0,0.00022386]
[1739311438665,0.001,96616.0,96615.0,0.00022386]
[1739311438867,0.156253,96616.0,96615.0,0.22462751]
[1739311440401,0.155253,96616.0,96615.0,0.22462751]
[1739311440600,0.155253,96616.0,96615.0,0.22662751]
[1739311440807,0.156253,96616.0,96615.0,0.23262751]
[1739311441211,0.155253,96616.0,96615.0,0.22762751]
[1739311441614,0.155253,96616.0,96615.0,0.23262751]
[1739311442079,0.2328776,96616.0,96615.0,0.23262751]
[1739311443339,0.2328776,96616.0,96615.0,0.13012386]
[1739311443552,0.23120034,96616.0,96615.0,0.00822386]
[1739311444168,0.23120034,96616.0,96615.0,0.00322386]
[1739311444830,0.23120034,96616.0,96615.0,0.00522386]
[1739311445028,0.24437371,96616.0,96615.0,0.00522386]
[1739311445228,0.24437371,96616.0,96615.0,0.00222386]
[1739311445426,0.24737371,96616.0,96615.0,0.00222386]
[1739311446278,0.39737371,96616.0,96615.0,0.00222386]
[1739311447015,0.39737371,96616.0,96615.0,0.00022386]
[1739311447384,0.15,96615.0,96613.0,0.00022365]
[1739311447595,0.3861369,96614.0,96613.0,0.00022365]
[1739311448972,0.40553595,96614.0,96613.0,0.00022365]
[1739311449240,0.40653595,96614.0,96613.0,0.00022365]
[1739311450198,0.42953595,96614.0,96613.0,0.00022365]
[1739311450660,0.43153595,96614.0,96613.0,0.00022365]
[1739311451038,0.44153595,96614.0,96613.0,0.00022365]
[1739311451856,0.44153595,96614.0,96597.0,0.00022365]
[1739311451857,0.305282,96598.0,96597.0,0.00022365]
[1739311452059,0.328282,96598.0,96597.0,0.00026809]
[1739311453143,0.023,96598.0,96597.0,0.00026809]
[1739311453781,0.024,96598.0,96597.0,0.01026809]
[1739311453981,0.179282,96598.0,96597.0,0.01026809]
[1739311454293,0.178282,96598.0,96597.0,0.00026809]
[1739311454522,0.2662209,96598.0,96597.0,0.00026809]
[1739311455811,0.28688715,96598.0,96597.0,0.00026809]
[1739311456309,0.29998255,96598.0,96597.0,0.00026809]
[1739311458378,0.21904365,96598.0,96597.0,0.00026809]
[1739311461343,0.21915025,96598.0,96597.0,0.00026809]
[1739311469909,0.21915025,96598.0,96597.0,0.08126809]
[1739311469910,0.19615025,96598.0,96597.0,0.08126809]
[1739311470115,0.19615025,96598.0,96597.0,0.12936809]
[1739311470609,0.27787598,96598.0,96597.0,0.12936809]
[1739311471516,0.27587598,96598.0,96597.0,0.12936809]
[1739311471957,0.27787598,96598.0,96597.0,0.12936809]
[1739311472158,0.18915025,96598.0,96597.0,0.12936809]
[1739311472415,0.19015025,96598.0,96597.0,0.12936809]
[1739311472888,0.18915025,96598.0,96597.0,0.12936809]
[1739311473376,0.19015025,96598.0,96597.0,0.12936809]
[1739311479675,0.18915025,96598.0,96597.0,0.12936809]
[1739311480047,0.18915025,96598.0,96597.0,0.13136809]
[1739311483378,0.1868243,96598.0,96597.0,0.13136809]
[1739311484470,0.17605485,96598.0,96597.0,0.13136809]
[1739311484700,0.1553886,96598.0,96597.0,0.13136809]
[1739311485063,0.1553886,96598.0,96597.0,0.23387174]
[1739311494977,0.23303796,96598.0,96597.0,0.13136809]
[1739311495185,0.23303796,96598.0,96597.0,0.00226809]
[1739311495995,0.1553886,96598.0,96597.0,0.00226809]
[1739311500872,0.1553886,96598.0,96597.0,0.07886809]
[1739311502565,0.1553886,96598.0,96597.0,0.18137174]
[1739311503611,0.1553886,96598.0,96597.0,0.22937174]
[1739311506367,0.0001066,96598.0,96597.0,0.22937174]
[1739311507442,0.0001066,96598.0,96597.0,0.22737174]
[1739311507685,0.0011066,96598.0,96597.0,0.23237174]
[1739311507932,0.1563886,96598.0,96597.0,0.12986809]
[1739311508658,0.1563886,96598.0,96597.0,0.13086809]
[1739311509145,0.1563886,96598.0,96597.0,0.12986809]
[1739311509640,0.0021066,96598.0,96597.0,0.24437174]
[1739311511135,0.0021066,96598.0,96597.0,0.39965574]
[1739311511673,0.0099724,96607.0,96606.0,0.155269]
[1739311511947,0.0099724,96607.0,96606.0,0.38047265]
[1739311512195,0.08285991,96626.0,96610.0,0.076]
[1739311512457,0.155244,96622.0,96617.0,0.076]
[1739311512711,0.155243,96623.0,96618.0,0.30445365]
[1739311512950,0.155243,96623.0,96619.0,0.076]
[1739311513192,0.155244,96622.0,96620.0,0.10250365]
[1739311514353,0.1180295,96625.0,96620.0,0.10250365]
[1739311514617,0.155244,96622.0,96620.0,0.10250365]
[1739311515086,0.155244,96622.0,96620.0,0.10650365]
[1739311515339,0.155242,96624.0,96621.0,0.076]
[1739311515551,0.155242,96624.0,96622.0,0.10250365]
[1739311515888,0.155242,96623.0,96622.0,0.10250365]
[1739311518033,0.155242,96623.0,96622.0,0.11150365]
[1739311518274,0.1553486,96623.0,96622.0,0.11150365]
[1739311518482,0.21230097,96623.0,96622.0,0.11150365]
[1739311520078,0.21230097,96623.0,96622.0,0.009]
[1739311520478,0.1553486,96623.0,96622.0,0.009]
[1739311523108,0.16800328,96623.0,96622.0,0.009]
[1739311530561,0.16800328,96623.0,96622.0,0.00922386]
[1739311532071,0.17250228,96623.0,96622.0,0.00922386]
[1739311533938,0.0046056,96623.0,96622.0,0.11172751]
[1739311534174,0.0046056,96623.0,96622.0,0.19342751]
[1739311534403,0.1553486,96623.0,96622.0,0.19342751]
[1739311534849,0.00459961,96623.0,96622.0,0.19342751]
[1739311535262,0.15984161,96623.0,96622.0,0.19342751]
[1739311536369,0.15984161,96623.0,96622.0,0.34867151]
[1739311536370,0.00459961,96623.0,96622.0,0.34867151]
[1739311536604,0.00459961,96623.0,96622.0,0.39677151]
[1739311536783,0.15429619,96630.0,96624.0,0.0782]
[1739311536991,0.00449962,96629.0,96626.0,0.0782]
[1739311537220,0.155229,96631.0,96628.0,0.0782]
[1739311537413,0.155229,96631.0,96629.0,0.10250365]
[1739311537622,0.00449956,96630.0,96629.0,0.10250365]
[1739311538599,0.155223,96635.0,96629.0,0.23240365]
[1739311538783,0.00448641,96634.0,96629.0,0.23440365]
[1739311538985,0.155226,96633.0,96629.0,0.23440365]
[1739311539255,0.15971441,96632.0,96629.0,0.23640365]
[1739311539444,0.155231,96631.0,96629.0,0.23640365]
[1739311539642,0.00448641,96632.0,96630.0,0.0813]
[1739311539833,0.155228,96632.0,96630.0,0.18380365]
[1739311540217,0.00448629,96631.0,96630.0,0.18380365]
[1739311540439,0.15971529,96631.0,96630.0,0.18380365]
[1739311540846,0.00448629,96631.0,96630.0,0.18380365]
[1739311541541,0.00448629,96631.0,96630.0,0.19180365]
[1739311541803,0.15971529,96631.0,96630.0,0.19180365]
[1739311542227,0.00448629,96631.0,96630.0,0.19180365]
[1739311542628,0.155229,96632.0,96630.0,0.19180365]
[1739311542825,0.15970195,96631.0,96630.0,0.19180365]
[1739311543041,0.15970195,96631.0,96630.0,0.19580365]
[1739311543653,0.15970195,96631.0,96630.0,0.18780365]
[1739311543867,0.15970195,96631.0,96630.0,0.0923]
[1739311544417,0.22042462,96631.0,96630.0,0.0853]
[1739311544621,0.22042462,96631.0,96630.0,0.0933]
[1739311545050,0.15970195,96631.0,96630.0,0.012]
[1739311545806,0.33270195,96631.0,96630.0,0.012]
[1739311546240,0.328242,96623.0,96622.0,0.00022386]
[1739311546414,0.353142,96623.0,96622.0,8.6e-07]
[1739311546624,0.46013011,96623.0,96622.0,8.6e-07]
[1739311549196,0.46313011,96623.0,96622.0,8.6e-07]
[1739311550299,0.47548788,96623.0,96622.0,8.6e-07]
[1739311550501,0.57799153,96623.0,96622.0,8.6e-07]
[1739311551352,0.59421236,96623.0,96622.0,8.6e-07]
[1739311552751,0.59121236,96623.0,96622.0,8.6e-07]
[1739311552877,0.60521236,96623.0,96622.0,8.6e-07]
[1739311553083,0.305282,96598.0,96586.0,0.0805]
[1739311553289,0.3598102,96598.0,96586.0,0.0805]
[1739311553494,0.36424266,96598.0,96586.0,0.0805]
[1739311554321,0.36424266,96598.0,96597.0,0.00026809]
[1739311554699,0.36424266,96598.0,96597.0,0.00126809]
[1739311554899,0.37124266,96598.0,96597.0,0.00126809]
[1739311555685,0.37524266,96598.0,96597.0,0.00126809]
[1739311556731,0.36824266,96598.0,96597.0,0.00026809]
[1739311556951,0.37724266,96598.0,96597.0,0.00026809]
[1739311557147,0.173,96597.0,96584.0,0.048]
[1739311557514,0.22196066,96598.0,96553.0,0.09503073]
[1739311557515,0.178298,96588.0,96587.0,0.00066959]
[1739311557928,0.18265697,96588.0,96587.0,0.00066959]
[1739311559528,0.19554533,96588.0,96587.0,0.00066959]
[1739311559734,0.45804898,96588.0,96587.0,0.00066959]
[1739311559935,0.56155263,96588.0,96587.0,0.00066959]
[1739311560757,0.56055263,96588.0,96587.0,0.00066959]
[1739311560990,0.56055263,96588.0,96587.0,5.9e-07]
[1739311561783,0.55955263,96588.0,96587.0,5.9e-07]
[1739311561990,0.56155263,96588.0,96587.0,5.9e-07]
[1739311562197,0.56055263,96588.0,96587.0,5.9e-07]
[1739311562602,0.56555263,96588.0,96587.0,5.9e-07]
[1739311563984,0.305353,96554.0,96553.0,0.0799]
[1739311564187,0.305353,96554.0,96545.0,0.0799]
[1739311564188,0.155361,96549.0,96545.0,0.0799]
[1739311564388,0.15964055,96549.0,96548.0,0.00026841]
[1739311564639,0.15964055,96549.0,96545.0,0.0799]
[1739311564640,0.155366,96546.0,96545.0,0.07972552]
[1739311565016,0.15964536,96546.0,96545.0,0.07972552]
[1739311566224,0.18464536,96546.0,96545.0,0.07972552]
[1739311566795,0.16164536,96546.0,96545.0,0.07972552]
[1739311567449,0.16264536,96546.0,96545.0,0.07972552]
[1739311567661,0.25538809,96546.0,96545.0,0.07972552]
[1739311567862,0.25438809,96546.0,96545.0,0.07963318]
[1739311568091,0.25338809,96546.0,96545.0,0.07985704]
[1739311569383,0.17293387,96546.0,96545.0,0.07985704]
[1739311569990,0.17293387,96546.0,96545.0,0.07976497]
[1739311569991,0.17393387,96546.0,96545.0,0.07976497]
[1739311570563,0.17293387,96546.0,96545.0,0.07976497]
[1739311570786,0.17393387,96546.0,96545.0,0.07976497]
[1739311570997,0.25551694,96546.0,96545.0,0.07976497]
[1739311571645,0.27851694,96546.0,96545.0,0.00022386]
[1739311572414,0.39102059,96546.0,96545.0,0.00022386]
[1739311572611,0.54002059,96546.0,96545.0,0.00022386]
[1739311572831,0.57098064,96546.0,96545.0,0.00022386]
[1739311573011,0.57398064,96546.0,96545.0,0.00022386]
[1739311573180,0.57098064,96546.0,96545.0,0.00022386]
[1739311573397,0.59878307,96546.0,96545.0,0.00022386]
[1739311573639,0.60778307,96546.0,96545.0,0.00022386]
[1739311574423,0.60278307,96546.0,96545.0,0.00022386]
[1739311574662,0.61078307,96546.0,96545.0,0.00022386]
[1739311575476,0.59821334,96546.0,96545.0,0.00022386]
[1739311576151,0.62701577,96546.0,96545.0,0.00022386]
[1739311577201,0.62701577,96546.0,96545.0,8.6e-07]
[1739311578202,0.338367,96545.0,96544.0,3e-07]
[1739311578401,0.60734303,96545.0,96544.0,3e-07]
[1739311578798,0.54758055,96545.0,96544.0,3e-07]
[1739311579609,0.55458055,96545.0,96544.0,3e-07]
[1739311580014,0.328382,96536.0,96535.0,1e-08]
[1739311580193,0.3894392,96536.0,96535.0,1e-08]
[1739311581981,0.3964392,96536.0,96535.0,1e-08]
[1739311582191,0.3894392,96536.0,96535.0,1e-08]
[1739311582392,0.50894285,96536.0,96535.0,1e-08]
[1739311582710,0.5321765,96536.0,96535.0,1e-08]
[1739311582912,0.5391765,96536.0,96535.0,1e-08]
[1739311583140,0.5251765,96536.0,96535.0,1e-08]
[1739311583336,0.338388,96532.0,96531.0,6.6e-07]
[1739311583542,0.4718517,96532.0,96531.0,6.6e-07]
[1739311583795,0.315398,96526.0,96525.0,5.2e-07]
[1739311584003,0.57220773,96526.0,96525.0,5.2e-07]
[1739311584211,0.57220773,96526.0,96500.0,8.6e-07]
[1739311584212,0.023,96517.0,96500.0,8.6e-07]
[1739311584415,0.328438,96501.0,96500.0,8.6e-07]
[1739311584619,0.43509865,96501.0,96500.0,8.6e-07]
[1739311585173,0.27966065,96501.0,96486.0,0.0455]
[1739311585378,0.328453,96492.0,96486.0,0.0455]
[1739311585581,0.4078791,96492.0,96486.0,0.0455]
[1739311586429,0.4088791,96492.0,96486.0,0.0455]
[1739311587080,0.4088791,96492.0,96478.0,0.0759]
[1739311587705,0.52138275,96492.0,96478.0,0.0759]
[1739311587939,0.52138275,96492.0,96475.0,0.0455]
[1739311588140,0.338454,96491.0,96475.0,0.0455]
[1739311588388,0.54757568,96491.0,96475.0,0.0455]
[1739311588799,0.20912168,96491.0,96475.0,0.0455]
[1739311589202,0.36457568,96491.0,96475.0,0.0455]
[1739311589843,0.21412168,96491.0,96487.0,8.8e-07]
[1739311590051,0.155459,96488.0,96487.0,8.8e-07]
[1739311590301,0.26207685,96488.0,96487.0,8.8e-07]
[1739311590639,0.27831953,96488.0,96487.0,8.8e-07]
[1739311590869,0.01,96481.0,96451.0,0.04592344]
[1739311591052,0.155511,96456.0,96451.0,0.04592344]
[1739311591321,0.15954728,96456.0,96451.0,0.04592344]
[1739311592243,0.15954728,96456.0,96455.0,0.00066876]
[1739311592419,0.23770401,96456.0,96455.0,0.00066876]
[1739311592832,0.24670401,96456.0,96455.0,0.00066876]
[1739311593010,0.25070401,96456.0,96455.0,0.00066876]
[1739311593823,0.24170401,96456.0,96455.0,0.00066876]
[1739311595003,0.15954728,96456.0,96455.0,0.00066876]
[1739311595344,0.16854728,96456.0,96455.0,0.00066876]
[1739311595689,0.17254728,96456.0,96455.0,0.00066876]
[1739311597053,0.18464025,96456.0,96455.0,0.00066876]
[1739311597256,0.20507065,96456.0,96455.0,0.00066876]
[1739311597670,0.18464025,96456.0,96455.0,0.00066876]
[1739311597874,0.18464025,96456.0,96455.0,0.07766876]
[1739311598447,0.17254728,96456.0,96455.0,0.07766876]
[1739311599354,0.15954728,96456.0,96455.0,0.07766876]
[1739311599842,0.16454728,96456.0,96455.0,0.07766876]
[1739311600061,0.16254728,96456.0,96455.0,0.07766876]
[1739311600272,0.16354728,96456.0,96455.0,0.07766876]
[1739311601145,0.19811857,96456.0,96455.0,0.07766876]
[1739311601717,0.19711857,96456.0,96455.0,0.07766876]
[1739311602199,0.19811857,96456.0,96455.0,0.07766876]
[1739311602446,0.16154728,96456.0,96455.0,0.07766876]
[1739311602635,0.16354728,96456.0,96455.0,0.07766876]
[1739311602848,0.16154728,96456.0,96455.0,0.07766876]
[1739311603046,0.16354728,96456.0,96455.0,0.07766876]
[1739311603797,0.16354728,96456.0,96455.0,0.00066876]
[1739311604716,0.15954728,96456.0,96455.0,0.00066876]
[1739311604910,0.16854728,96456.0,96455.0,0.00066876]
[1739311605118,0.17254728,96456.0,96455.0,0.00066876]
[1739311605386,0.16854728,96456.0,96455.0,0.00066876]
[1739311605622,0.15954728,96456.0,96455.0,0.00066876]
[1739311605855,0.23113276,96456.0,96455.0,0.00066876]
[1739311607245,0.17254728,96456.0,96455.0,0.00066876]
[1739311617623,0.17254728,96456.0,96455.0,0.07866876]
[1739311617852,0.16354728,96456.0,96455.0,0.07866876]
[1739311618017,0.17054728,96456.0,96455.0,0.07866876]
[1739311618179,0.17554728,96456.0,96455.0,0.07866876]
[1739311618381,0.19790828,96456.0,96455.0,0.07866876]
[1739311618601,0.18690828,96456.0,96455.0,0.07866876]
[1739311618807,0.19990828,96456.0,96455.0,0.07866876]
[1739311619233,0.17754728,96456.0,96455.0,0.07866876]
[1739311619585,0.16854728,96456.0,96455.0,0.07866876]
[1739311620270,0.15954728,96456.0,96455.0,0.07866876]
[1739311620710,0.16454728,96456.0,96455.0,0.12786876]
[1739311620990,0.17054728,96456.0,96455.0,0.12786876]
[1739311621228,0.17454728,96456.0,96455.0,0.12786876]
[1739311621427,0.15954728,96456.0,96455.0,0.12786876]